Cogmind - Beta 16 @@@ ROGUE MODE // 2025.12.28 @ 00:13:38 Player: Bity Result: Destroyed self with Grenade Launcher Performance ------------- Evolutions (0) 0 Regions Visited (1) 200 Robots Destroyed (14) 70 Value Destroyed (227) 227 Prototype IDs (0) 0 Alien Tech Used (0) 0 Bonus (0) 0 TOTAL SCORE: 497 Bonus ------- None Cogmind --------- Core Integrity 0/250 Matter 152/300 Energy 100/100 System Corruption 0% Temperature Cool (93) Movement Core (750) Ox14 Location -10/Materials Parts ------- > --- POWER (1) -------- (None) > --- PROPULSION (2) --- (None) > --- UTILITY (2) ------ High-capacity Storage Unit > --- WEAPON (2) ------- Grenade Launcher > --- INVENTORY (20) --- Ion Engine Aluminum Leg Aluminum Leg Wheel Compact Wheel Compact Wheel Medium Storage Unit Signal Interpreter EM Pulse Gun Mining Laser Peak State ------------ > --- POWER ------------ Ion Engine > --- PROPULSION ------- Aluminum Leg Aluminum Leg > --- UTILITY ---------- High-capacity Storage Unit Seismic Detector > --- WEAPON ----------- EM Pulse Gun Light Assault Rifle > --- INVENTORY -------- Ion Engine Wheel Wheel Wheel Compact Wheel Compact Wheel Medium Storage Unit EM Pulse Gun Grenade Launcher Mining Laser [Rating: 8] Favorites ----------- Power Ion Engine Engine Ion Engine Propulsion Aluminum Leg Leg Aluminum Leg Wheel Wheel Utility Seismic Detector Device Seismic Detector Storage Small Storage Unit Weapon EM Pulse Gun Energy Gun EM Pulse Gun Ballistic Gun Light Assault Rifle Launcher Grenade Launcher Special Weapon Mining Laser Build | -11 -10 ------- Run | Yrd Mat Slots Evolved . | . . Power . | . . Propulsion . | . . Utility . | . . Weapon . | . . Parts Attached 10 | 3 7 Power . | . . Engine . | . . Core . | . . Reactor . | . . Propulsion 2 | . 2 Treads . | . . Leg . | . . Wheel 2 | . 2 Hover . | . . Flight . | . . Utility 4 | 2 2 Device 2 | 2 . Storage 2 | . 2 Processor . | . . Hackware . | . . Protection . | . . Artifact . | . . Weapon 4 | 1 3 Energy Gun 1 | . 1 Energy Cannon . | . . Ballistic Gun 1 | 1 . Ballistic Cannon . | . . Launcher 1 | . 1 Special Weapon 1 | . 1 Impact Weapon . | . . Slashing Weapon . | . . Piercing Weapon . | . . Special Melee Weapon . | . . Unidentified Prototypes . | . . Parts Lost 6 | . 6 Power 1 | . 1 Propulsion 2 | . 2 Utility 1 | . 1 Weapon 2 | . 2 Highest Loss Streak 6 | . 6 To Critical Strikes . | . . Average Backups 8 | 7 9 Power 1 | 1 1 Propulsion 5 | 5 5 Utility . | . 1 Weapon 2 | 1 2 Tool/Special . | . . Unused Backups 14 | 8 6 Power 3 | 1 2 Propulsion 8 | 5 3 Utility 2 | 1 1 Weapon 1 | 1 . Tool/Special . | . . Average Slot Usage (%) 96 | . 96 Engine 13 | . 13 Leg 8 | . 8 Wheel 18 | . 18 Device 13 | . 13 Storage 14 | . 14 Energy Gun 8 | . 8 Ballistic Gun 14 | . 14 Launcher 3 | . 3 Peak Build Rating 8 | 7 8 Average Rating 7 | 6 7 On Entrance 6 | 6 7 Avg Prop Armor Cover (%) . | . . Naked Turns . | . . Heaviest Build 50 | 14 50 Greatest Support 20 | 20 20 Greatest Overweight (x) 4 | . 4 Average Overweight (x) . | . 1 Largest Inventory Capacity 20 | 8 20 Average Capacity 13 | 8 17 Most Carried 11 | 8 11 Average Carried 8 | 7 9 Final Capacity 20 | 8 20 Final Carried 10 | 8 10 Class Distribution -------------------- 100% | Mutant Dominant Class ---------------- Mutant | -10/Materials Resources | -11 -10 ----------- Run | Yrd Mat Matter Collected 275 | 240 35 Remotely . | . . Salvage Created 396 | 155 241 Parts 31 | 13 18 Haulers Intercepted . | . . Recyclers Shooed 1 | . 1 Parts Field Recycled . | . . Retrieved Matter . | . . Parts Self-Destructed . | . . Prevented . | . . Parts Restored . | . . Kills | -11 -10 ------- Run | Yrd Mat Combat Hostiles Destroyed 4 | . 4 Guns 2 | . 2 AOE 2 | . 2 Classes Destroyed 6 | 2 4 Worker 1 | . 1 Builder 1 | . 1 Tunneler 4 | 4 . Recycler 3 | 1 2 Watcher 1 | . 1 Grunt 4 | . 4 Best Kill Streak 6 | 2 6 Combat Bots Only 2 | . 2 Max Kills in Single Turn 2 | 1 2 Gunslinging . | . . Exploded 1 | . 1 Melee . | . . Uniques/NPCs Destroyed . | . . Combat | -11 -10 -------- Run | Yrd Mat Hostile Shots Fired 52 | . 52 Missed 6 | . 6 Hits 46 | . 46 Projectile 46 | . 46 Critical Strikes 3 | . 3 Damage Taken 676 | . 676 Core 253 | . 253 Absorbed by Shields . | . . Core Remaining (%) 100 | 100 . Volleys Fired 42 | 23 19 Largest 2 | 2 2 Hottest 100 | 80 100 Shots Fired 58 | 26 32 Gun 45 | 26 19 Cannon . | . . Launcher 11 | . 11 Special 2 | . 2 Kinetic 33 | 20 13 Thermal 2 | . 2 Explosive 11 | . 11 Electromagnetic 12 | 6 6 Robot Hit Streak 9 | 3 9 Robot Miss Streak 4 | 4 1 Penetration Max . | . . Secondary Targets 1 | . 1 Max Gunslinging Chain 1 | . 1 Shots Hit Robots 30 | 14 16 Core Hits 24 | 6 18 Critical Kills 2 | 1 1 Critical Parts Destroyed . | . . Critical Strikes 2 | 1 1 Destroy 2 | 1 1 Melee Attacks . | . . Impact . | . . Slashing . | . . Piercing . | . . Sneak Attacks . | . . Combat Hostiles . | . . Follow-up Attacks . | . . Damage Inflicted 850 | 158 692 Guns 225 | 116 109 Cannons . | . . Explosions 625 | 42 583 Melee . | . . Ramming . | . . Kinetic 134 | 88 46 Thermal 42 | 42 . Explosive 583 | . 583 Electromagnetic 91 | 28 63 Impact . | . . Slashing . | . . Piercing . | . . Highest Corruption . | . . Average Corruption . | . . Corruption Purged . | . . Corruption Blocked . | . . Overload Shots . | . . Overflow Damage 12 | 12 . Projectiles . | . . Explosions 12 | 12 . Melee . | . . Knockbacks . | . . Impact . | . . Kinetic . | . . Secondary . | . . Self-Inflicted Damage 97 | . 97 Shots 5 | . 5 Rammed . | . . Targets Rammed . | . . Kicked . | . . Crushed . | . . Highest Temperature 88 | 54 88 Average Temperature 31 | 29 32 Received Heat Transfer 396 | . 396 Siege Activations . | . . Martial Activations . | . . Shielding Activations . | . . Robots Disrupted . | . . Combat Hostiles . | . . Robots Corrupted . | . . Combat Hostiles . | . . Parts Fried . | . . Impact Corruptions . | . . Robots Melted . | . . Combat Hostiles . | . . Parts Melted . | . . Heat Transferred 50 | 50 . Parts Sabotaged . | . . Parts Stolen . | . . Parts Stripped . | . . Power Chain Reactions 1 | 1 . Alert | -11 -10 ------- Run | Yrd Mat Maximum Alert Level . | . . Low Security (%) 100 | 100 100 Level 1 . | . . Level 2 . | . . Level 3 . | . . Level 4 . | . . Level 5 . | . . High Security . | . . Max Security . | . . Peak Influence 77 | 10 77 Initial . | . . Average 13 | 1 23 Influence Increases 222 | 25 197 Destroy 0b10 Robot/C 80 | . 80 Destroy 0b10 Robot/NC 50 | 25 25 Destroy Leader 22 | . 22 Successful Hack 15 | . 15 Disable Machine 15 | . 15 Destroy Structure 40 | . 40 Influence Decreases 143 | 25 118 Time Decay 83 | 25 58 Lost Part 60 | . 60 Squads Dispatched 2 | . 2 Investigation . | . . Extermination . | . . Reinforcement 2 | . 2 Assault . | . . Garrison . | . . Intercept . | . . Searches Triggered . | . . Construction Impeded . | . . Haulers Reinforced . | . . Active Scanning Responses . | . . Cargo Convoy Interrupts . | . . Stealth | -11 -10 --------- Run | Yrd Mat Distress Signals . | . . Communications Jammed . | . . Distress Signals . | . . Times Spotted 8 | . 8 Peak Tracking Total 5 | . 5 Tactical Retreats . | . . Traps | -11 -10 ------- Run | Yrd Mat Traps Triggered . | . . Indirectly . | . . Trap Hack Attempts . | . . Triggered . | . . Disarmed . | . . Reprogrammed . | . . Reused . | . . Traps Extracted . | . . Installed . | . . Triggered . | . . Machines | -11 -10 ---------- Run | Yrd Mat Machines Disabled 2 | . 2 Max in Single Turn 1 | . 1 Machines Repaired . | . . Machines Dismantled . | . . Machines Sabotaged . | . . Overloaded Fab Kills . | . . Hacking | -11 -10 --------- Run | Yrd Mat Machines Accessed 3 | . 3 Terminals 3 | . 3 Fabricators . | . . Repair Stations . | . . Recycling Units . | . . Scanalyzers . | . . Garrison Access . | . . Total Hacks 9 | . 9 Successful 6 | . 6 Failed 3 | . 3 Catastrophic . | . . Database Lockouts . | . . Manual 9 | . 9 Terminals 9 | . 9 Fabricators . | . . Repair Stations . | . . Recycling Units . | . . Scanalyzers . | . . Garrison Access . | . . Terminal Hacks 1 | . 1 Zone Layout 1 | . 1 Fabricator Hacks . | . . Repair Station Hacks . | . . Recycling Unit Hacks . | . . Scanalyzer . | . . Garrison Access Hacks . | . . Unauthorized Hacks 5 | . 5 Terminals 5 | . 5 Assimilate 1 | . 1 Botnet 3 | . 3 Operators 1 | . 1 Fabricators . | . . Repair Stations . | . . Recycling Units . | . . Scanalyzers . | . . Garrison Access . | . . Data Cores Recovered . | . . Used . | . . Hacking Detections 3 | . 3 Full Trace Events . | . . Feedback Events . | . . Feedback Blocked . | . . Robot Schematics Acquired . | . . Robots Built . | . . Authchips . | . . Time . | . . Total Robot Build Rating . | . . Part Schematics Acquired . | . . Parts Built . | . . Authchips . | . . Time . | . . Total Part Build Rating . | . . Part Studies Acquired . | . . Parts Repaired . | . . Time . | . . Parts Recycled . | . . Recycled Matter . | . . Retrieved Matter . | . . Retrieved Components . | . . Parts Scanalyzed . | . . Part Schematics Acquired . | . . Parts Damaged . | . . Bothacking | -11 -10 ------------ Run | Yrd Mat Used RIF Installer . | . . Robots Hacked . | . . Non-combat . | . . Combat . | . . Robot Hacks Applied . | . . Relay Couplers Released . | . . Fabnet Peak Effective % . | . . Robots Rewired . | . . Allies Hacked . | . . Hacks Repelled . | . . Allies | -11 -10 -------- Run | Yrd Mat Total Allies . | . . Largest Group . | . . Highest-Rated Group . | . . Highest-Rated Ally . | . . Total Orders . | . . Ally Attacks . | . . Total Damage . | . . Kills . | . . Allies Corrupted . | . . Allies Melted . | . . Intel | -11 -10 ------- Run | Yrd Mat Active Infowar (turns) 317 | 110 207 Seismic 317 | 110 207 Robot Analysis Total . | . . Derelict Logs Recovered . | . . Drone Launches . | . . Drone Recoveries . | . . Exploration | -11 -10 ------------- Run | Yrd Mat Turns Passed 387 | 170 217 Spaces Moved 215 | 84 131 Core . | . . Treads . | . . Legs 131 | 84 47 Wheels 84 | . 84 Hover . | . . Flight . | . . Fastest Speed 110 | 120 110 Average Speed 116 | 120 113 Slowest Speed 140 | 120 140 Overloaded Moves . | . . Propulsion Burnouts . | . . Robots Hopped . | . . Potential Cave-ins . | . . Cave-ins Triggered . | . . Exploration Rate (%) 17 | 4 31 Regions Visited 1 Branch Regions . Pre-discovered Areas . | . . Known Exits Taken . | . . Unknown Exits Taken 1 | 1 . Scrap Searched . | . . Spaces Dug 2 | . 2 Terrain Destroyed 46 | 4 42 Melee . | . . Projectile 2 | . 2 AOE 44 | 4 40 Terrain Rammed . | . . Walls Destroyed . | . . Machines Disabled . | . . Actions | -11 -10 --------- Run | Yrd Mat Total 300 | 135 165 Wait 17 | 13 4 Move 214 | 83 131 Hop . | . . Pick Up 9 | 7 2 Fast Attach 1 | 1 . Attach 1 | . 1 Detach . | . . Swap 9 | 2 7 Drop 7 | 6 1 Fire 42 | 23 19 Melee . | . . Ram . | . . Kick . | . . Crush . | . . Escape Stasis . | . . Rewire . | . . Trap . | . . Miscellaneous . | . . Route ------- -11/Scrapyard -10/Materials (discovered 1 exit: [*Min]) History --------- Turn | Location | Event 1 | -11/Scrapyard | Discovered new exit (range 3) 171 | -11/Scrapyard | Entered Materials 309 | -10/Materials | Build established: Mutant 367 | -10/Materials | Discovered new exit (range 9) 384 | -10/Materials | Core integrity fell below 50% 387 | -10/Materials | Core integrity fell below 20% 388 | -10/Materials | Destroyed self with Grenade Launcher Last Messages --------------- 00380_ Machine disabled. 00380_ Lgt. Assault Rifle destroyed. 00380_ Destroyed Lgt. Assault Rifle. 00380_ Critical hit (Burn: +37). 00381_ U-05 Engineer lays Concrete. 00381_ K-01 Serf collects debris. 00382_ Wheel destroyed. 00382_ Critical hit (Burn: +37). 00383_ U-05 Engineer lays Concrete. 00384_ K-01 Serf destroyed. 00385_ U-05 Engineer lays Concrete. 00386_ Critical hit (Burn: +37). 00386_ U-05 Engineer lays Concrete. 00386_ K-01 Serf collects debris. 00386_ ALERT: Hostiles spotted, dispatching reinforcements to Terminal M003. 00386_ G-47 Trooper destroyed. 00386_ U-05 Engineer destroyed. 00388_ G-34 Mercenary destroyed. 00388_ R-06 Scavenger destroyed. Map ----- +----------------------------------------------------+ | ?????????????????????????????????????????????????? | | ?????????????????????????????????????????????????? | | ?????????????????????????????????????????????????? | | ?????????????????????????????????????????????????? | | ?????????????????????????????????????????????????? | | ?????????????????????????????????????????????????? | | ?????????????????????????????????????????????????? | | ?????????????????????????????????????????????????? | | ?????????????????????????????????????????????????? | | ?????????????????????????????????????????????????? | | ?????????????????#? ????????????????????????????? | | ?????????????????# ????????????????????????????? | | ?????????????????# ????????????????????????????? | | ?????????????????# ?????????????#??????????????? | | ?????????????????# ???????###### # ????????????? | | ???????????????"?# ####### #????????????? | | ???????????????" # ???????????? | | ???????????????? /a ^ < ????????????? | | ?????????????????# """ ! ?????????????? | | ?????????????????# "T" % #?????????????? | | ?????????????????# | | ??????????????? | | ?????????????????# ! " ????????????????? | | ?????????????????# !|! =% ##### ???????? | | ???????????####### %= !ru ???????? | | ?????????? g g ####+###+#?????#???? | | ????????? <